bitfinex/quotes_ETHUSD_20250526
["timestamp","ask_amount","ask_price","bid_price","bid_amount"]
[1748247507143,4.70090903,2577.6,2577.1,7.75531495]
[1748247507348,0.8213,2577.6,2577.1,7.75531495]
[1748247508756,4.70092404,2577.6,2577.1,3.875]
[1748247508963,3.87974184,2577.5,2577.0,12.64594929]
[1748247509143,3.87974184,2577.5,2577.0,18.57805463]
[1748247509871,4.70093856,2577.6,2577.0,18.57805463]
[1748247510039,4.70093856,2577.6,2577.0,17.81255463]
[1748247510040,3.87976114,2577.5,2577.0,17.81255463]
[1748247510461,4.70093696,2577.6,2577.0,17.81255463]
[1748247511162,4.70093696,2577.6,2577.1,3.88031862]
[1748247512260,0.8213,2577.6,2577.1,3.88031862]
[1748247513164,4.70089324,2577.6,2577.1,3.88031862]
[1748247513972,3.87977942,2577.5,2577.0,17.81250963]
[1748247514321,3.87977942,2577.5,2577.0,13.93750963]
[1748247514523,4.70091394,2577.6,2577.0,8.0]
[1748247514745,3.87988663,2577.4,2577.0,8.0]
[1748247515375,3.87999855,2577.4,2576.9,8.0]
[1748247515538,3.87980304,2577.5,2576.9,15.7555333]
[1748247516073,3.87989103,2577.4,2576.9,15.7555333]
[1748247518224,3.87980301,2577.5,2576.9,15.7555333]
[1748247518857,4.7008956,2577.6,2577.2,8.0]
[1748247519162,4.9687,2577.9,2577.4,8.0]
[1748247519658,8.84792134,2577.9,2577.4,8.0]
[1748247519826,3.87930572,2577.8,2577.4,8.0]
[1748247520026,4.9687,2577.9,2577.4,3.87984467]
[1748247520228,8.84784176,2577.9,2577.4,3.87984467]
[1748247520442,8.84784176,2577.9,2577.4,3.91863976]
[1748247520443,4.9687,2577.9,2577.4,3.91863976]
[1748247520643,8.84783782,2577.9,2577.4,3.87984467]
[1748247521050,3.87929714,2577.8,2577.3,11.87995797]
[1748247522331,3.87929714,2577.8,2577.2,12.65582364]
[1748247522530,3.87944654,2577.7,2577.2,12.65582364]
[1748247522856,3.87944654,2577.7,2577.2,14.92954913]
[1748247523077,3.87934943,2577.8,2577.2,14.92954913]
[1748247523435,4.9687,2577.9,2577.4,3.87984556]
[1748247524273,8.84783574,2577.9,2577.4,3.87984556]
[1748247524477,3.87929331,2577.8,2577.3,3.88000213]
[1748247524671,4.9687,2577.9,2577.4,3.87986381]
[1748247524835,8.01601947,2578.0,2577.5,8.0]
[1748247525232,4.137,2578.0,2577.5,3.87966065]
[1748247525773,8.01597994,2578.0,2577.5,3.87966065]
[1748247527739,8.01597994,2578.0,2577.5,11.87966065]
[1748247528093,8.01597994,2578.0,2577.6,8.0]
[1748247529591,8.01597994,2578.0,2577.5,2.99031113]
[1748247529592,0.7792,2578.1,2577.5,0.7519]
[1748247529747,4.70682895,2578.3,2577.8,8.0]
[1748247533681,4.70682895,2578.3,2577.8,11.87926796]
[1748247534420,3.87879973,2578.2,2577.6,12.42949112]
[1748247534592,3.87879973,2578.2,2577.6,14.75570708]
[1748247534929,3.87884023,2578.1,2577.6,14.75570708]
[1748247535279,3.87873382,2578.2,2577.6,14.75570708]
[1748247536524,4.70678885,2578.3,2577.7,11.87942739]
[1748247537016,0.8282,2578.3,2577.7,11.87942739]
[1748247537217,4.9338,2578.5,2577.8,2.24856434]
[1748247537588,8.81217084,2578.5,2578.0,8.0]
[1748247538301,3.87839951,2578.4,2577.9,8.0]
[1748247538613,3.87839951,2578.4,2577.9,11.87909211]
[1748247541118,3.87839951,2578.4,2577.9,8.0]
[1748247542417,3.87859279,2578.3,2577.9,8.0]
[1748247543088,3.87844369,2578.4,2577.9,8.0]
[1748247544737,3.87844369,2578.4,2577.9,11.8790646]
[1748247544937,3.87844369,2578.4,2577.9,8.0]
[1748247545633,3.87837418,2578.4,2577.9,8.0]
[1748247547333,3.87852894,2578.3,2577.9,8.0]
[1748247547552,4.70038125,2578.2,2577.8,8.0]
[1748247547758,3.87892952,2578.1,2577.8,8.0]
[1748247548330,0.8217,2578.2,2577.8,8.0]
[1748247548530,4.70037928,2578.2,2577.8,8.0]
[1748247549335,4.70040793,2578.2,2577.8,8.0]
[1748247549503,4.70040793,2578.2,2577.7,8.0]
[1748247550641,4.70044645,2578.2,2577.7,8.0]
[1748247551535,3.8788334,2578.1,2577.7,8.0]
[1748247551739,3.87900568,2578.0,2577.6,12.6917]
[1748247552032,3.87900568,2578.0,2577.6,11.874]
[1748247552536,3.8789062,2578.1,2577.6,11.874]
[1748247552837,3.87897929,2578.0,2577.6,8.0]
[1748247553008,3.87897929,2578.0,2577.5,15.7537252]
[1748247553214,3.87897929,2578.0,2577.5,18.1465703]
[1748247554236,4.70042002,2578.2,2577.6,3.87950972]
[1748247554428,3.87882737,2578.1,2577.6,3.87950972]
[1748247555145,3.87882737,2578.1,2577.5,18.14650265]
[1748247556045,3.87898707,2578.0,2577.5,18.14650265]
[1748247556340,3.87920919,2577.9,2577.5,10.3928451]
[1748247556544,4.9567,2578.2,2577.4,13.29271717]
[1748247556747,3.87924894,2577.9,2577.4,13.29271717]
[1748247556948,3.87924894,2577.9,2577.4,17.17258869]
[1748247558349,3.87924894,2577.9,2577.4,13.29858869]
[1748247558519,3.87924894,2577.9,2577.4,17.17358869]
[1748247558854,3.87924894,2577.9,2577.4,19.33396401]
[1748247559156,3.87901362,2578.0,2577.4,19.33396401]
[1748247560562,3.87915074,2577.9,2577.4,19.33396401]
[1748247561863,3.87915074,2577.9,2577.4,18.71534684]
[1748247563169,3.87902821,2578.0,2577.4,18.71534684]
[1748247564267,3.87902821,2578.0,2577.6,8.0]
[1748247564762,3.87902821,2578.0,2577.5,8.0]
[1748247564950,3.87913459,2577.9,2577.5,8.0]
[1748247565969,3.87913459,2577.9,2577.4,6.83547532]
[1748247566266,3.87882549,2578.1,2577.4,0.8001]
[1748247566465,4.6954353,2577.6,2577.2,0.61861717]
[1748247566765,4.69492642,2577.9,2577.3,8.0]
[1748247566964,3.87940027,2577.8,2577.3,8.0]
[1748247567543,0.8158,2577.9,2577.5,8.0]
[1748247567758,8.80780373,2578.1,2577.5,3.87963036]
[1748247567957,3.87897887,2578.0,2577.6,8.0]
[1748247568258,4.9289,2578.1,2577.6,8.0]
[1748247568568,8.80779656,2578.1,2577.6,8.0]
[1748247569168,8.01189656,2578.1,2577.6,8.0]
[1748247569344,8.01189656,2578.1,2577.6,9.70150318]
[1748247570345,3.87902021,2578.0,2577.6,9.70150318]
[1748247575393,3.87886899,2578.1,2577.6,9.70150318]
[1748247576680,3.87886899,2578.1,2577.7,0.7829]
[1748247577994,3.87899763,2578.0,2577.7,0.7829]
[1748247578998,4.133,2578.2,2577.8,8.0]
[1748247579206,8.01169368,2578.2,2577.8,8.0]
[1748247580207,4.133,2578.2,2577.8,11.87924919]
[1748247580372,3.87859769,2578.3,2577.8,11.87924919]
[1748247581315,3.87859769,2578.3,2577.8,8.0]
[1748247581484,3.87871453,2578.2,2577.8,9.89239451]
[1748247583614,3.8788301,2578.1,2577.8,9.89239451]
[1748247584304,3.87872931,2578.2,2577.8,9.89239451]
[1748247585717,0.7676,2578.5,2578.2,8.0]
[1748247585931,4.133,2578.8,2578.0,0.7592]
[1748247586114,0.824,2578.9,2578.5,8.0]
[1748247586299,0.824,2578.9,2578.5,0.7592]
[1748247586506,4.70170812,2578.9,2578.5,0.7592]
[1748247586903,3.92770812,2578.9,2578.5,0.7592]
[1748247587229,0.05,2578.9,2578.5,4.63740494]
[1748247587431,0.05,2578.9,2578.5,5.48899354]
[1748247587795,0.05,2578.9,2578.7,8.0]
[1748247588102,0.05,2578.9,2578.6,8.0]
[1748247590227,3.92763816,2578.9,2578.5,9.6107886]
[1748247590394,0.05,2578.9,2578.5,9.6107886]
[1748247593600,3.92763572,2578.9,2578.5,9.6107886]
[1748247595262,0.8483,2578.9,2578.1,0.7914]
[1748247595414,3.87839647,2578.4,2578.1,8.0]
[1748247595793,3.87844341,2578.4,2578.0,0.46348136]
[1748247596023,3.87844341,2578.4,2578.0,4.33748136]
[1748247596229,3.87844341,2578.4,2578.0,8.0]
[1748247596430,3.87868148,2578.2,2578.0,8.0]
[1748247596701,3.87868148,2578.2,2577.9,0.8133]
[1748247596702,0.7575,2578.1,2577.7,12.33748136]
[1748247596902,0.7575,2578.1,2577.7,14.10237882]
[1748247597640,3.87827545,2578.5,2577.8,8.0]
[1748247597641,4.63603076,2578.3,2577.8,8.0]
[1748247598739,3.8786886,2578.2,2577.8,8.0]
[1748247599264,3.8786886,2578.2,2577.7,9.76489746]
[1748247599463,4.63605241,2578.3,2577.7,13.64421364]
[1748247600028,3.87870471,2578.2,2577.7,13.64421364]
[1748247600328,3.87870471,2578.2,2577.7,9.76489746]
[1748247600657,3.87872078,2578.2,2577.7,9.76489746]
[1748247600822,3.87867504,2578.2,2577.6,8.0]
[1748247601018,3.87894134,2578.1,2577.6,11.874]
[1748247601247,3.87894134,2578.1,2577.6,15.7535691]
[1748247601441,3.87894134,2578.1,2577.6,17.89297142]
[1748247601657,3.87894134,2578.1,2577.6,14.01897142]
[1748247601857,3.87894134,2578.1,2577.7,2.326]
[1748247602168,3.87894134,2578.1,2577.6,14.01897142]
[1748247602323,3.87923494,2577.9,2577.3,5.67007643]
[1748247602529,3.87923494,2577.9,2577.5,8.0]
[1748247602752,3.87923494,2577.9,2577.4,11.87983706]
[1748247602969,3.87923494,2577.9,2577.4,8.0]
[1748247602970,0.7858,2577.8,2577.4,8.0]
[1748247603128,0.7858,2577.8,2577.3,0.46348136]
[1748247603327,3.87950561,2577.7,2577.3,0.46348136]
[1748247603833,4.66507822,2577.8,2577.3,0.46348136]
[1748247603834,3.87958795,2577.6,2577.3,0.46348136]
[1748247604140,3.87951145,2577.7,2577.3,0.46348136]
[1748247604334,3.87979158,2577.5,2577.3,0.46348136]
[1748247604748,3.87979158,2577.5,2576.9,4.8278207]
[1748247604930,3.87979158,2577.5,2577.1,8.0]
[1748247605332,3.87962952,2577.6,2577.1,8.0]
[1748247605533,3.87973177,2577.5,2577.1,8.0]
[1748247606370,3.87964558,2577.6,2577.1,8.0]
[1748247609889,3.87973386,2577.5,2577.1,8.0]
[1748247611190,3.87973386,2577.5,2577.0,1.19731117]
[1748247613161,3.87973386,2577.5,2577.1,8.0]
[1748247615310,3.87961305,2577.6,2577.1,8.0]
[1748247615520,4.13,2577.7,2577.2,0.82]
[1748247615676,3.87958319,2577.6,2577.2,0.82]
[1748247616508,3.87988122,2577.4,2577.1,9.74422251]
[1748247616674,3.8800627,2577.3,2577.0,2.00781117]
[1748247617001,4.66554439,2577.4,2576.9,8.0]
[1748247617500,3.19931739,2577.4,2576.9,8.0]
[1748247618062,3.19931739,2577.4,2576.9,11.88061858]
[1748247619196,3.87963506,2577.6,2577.1,8.0]
[1748247619368,3.8795779,2577.6,2577.1,8.0]
[1748247619578,3.8795779,2577.6,2576.8,8.52337481]
[1748247619579,11.88446377,2577.7,2576.9,11.88057622]
[1748247619803,3.8795779,2577.6,2577.0,2.0403951]
[1748247619976,3.87973144,2577.5,2577.0,2.0403951]
[1748247620968,3.87973144,2577.5,2577.1,8.0]
[1748247621191,3.87973144,2577.5,2577.0,2.0403951]
[1748247622379,3.87973144,2577.5,2577.1,8.0]
[1748247622781,4.52861321,2577.6,2577.1,8.0]
[1748247625216,3.87977227,2577.5,2577.1,8.0]
[1748247626717,0.649,2577.6,2577.1,8.0]
[1748247626918,3.88041615,2577.1,2576.8,1.23108136]
[1748247627090,3.88002948,2577.3,2576.8,1.23108136]
[1748247627298,4.131,2577.3,2576.8,9.80415881]
[1748247627498,8.0110442,2577.3,2576.8,13.68484329]
[1748247628010,8.0110442,2577.3,2576.8,13.22136193]
[1748247628218,8.0110442,2577.3,2576.8,1.34067745]
[1748247628519,8.01109164,2577.3,2576.8,9.34067745]
[1748247629618,4.52870009,2577.6,2576.9,5.20278811]
[1748247629819,8.004,2577.4,2577.1,8.0]
[1748247630522,8.004,2577.4,2577.0,8.0]
[1748247631016,7.75596943,2577.4,2576.9,9.32216068]
[1748247631220,3.87996943,2577.4,2576.9,9.32216068]
[1748247631607,8.004,2577.5,2576.9,9.32216068]
[1748247631810,3.88028395,2577.2,2576.8,8.0]
[1748247632123,3.88028395,2577.2,2576.7,8.0]
[1748247632628,3.88028395,2577.2,2576.6,5.12748719]
[1748247632629,0.649,2577.1,2576.6,8.46348136]
[1748247632841,4.52941868,2577.1,2576.6,12.34455822]
[1748247632986,4.52941868,2577.1,2576.6,14.49656386]
[1748247633314,4.52941868,2577.1,2576.6,10.615487]
[1748247633713,4.52941868,2577.1,2576.6,14.49656467]
[1748247633925,0.649,2577.1,2576.6,14.49656467]
[1748247634420,0.649,2577.1,2576.6,14.03308331]
[1748247634788,4.52935976,2577.1,2576.6,14.03308331]
[1748247635684,0.649,2577.1,2576.6,10.15200564]
[1748247635887,0.649,2577.1,2576.5,0.46348136]
[1748247635888,0.649,2577.0,2576.5,0.46348136]
[1748247636089,3.88103633,2576.7,2576.5,0.46348136]
[1748247637119,4.128,2576.8,2576.5,0.46348136]
[1748247637326,8.00885611,2576.8,2576.5,0.46348136]
[1748247637903,8.00885611,2576.8,2576.3,8.0]
[1748247638206,8.00885611,2576.8,2576.3,9.70406019]
[1748247638432,4.128,2576.8,2576.3,5.58559139]
[1748247638612,4.128,2576.9,2576.5,8.0]
[1748247638831,4.128,2576.9,2576.5,3.88119463]
[1748247638991,4.128,2576.9,2576.5,1.8452107]
[1748247639784,8.00864527,2576.9,2576.5,1.8452107]
[1748247640227,4.52949372,2577.0,2576.5,6.50982293]
[1748247640426,8.65749372,2577.0,2576.5,2.6286107]
[1748247640645,4.777,2577.0,2576.4,8.0]
[1748247640852,0.649,2576.6,2576.1,9.29688136]
[1748247641139,3.8816862,2576.2,2576.1,0.51348136]
[1748247641797,4.5306862,2576.2,2576.1,0.51348136]
[1748247642592,4.5306862,2576.2,2576.1,0.05]
[1748247647928,8.6606862,2576.2,2576.1,0.05]
[1748247648522,4.5306862,2576.2,2576.1,0.05]
[1748247648737,3.8816862,2576.2,2576.1,0.05]
[1748247648954,4.13,2576.2,2576.1,0.05]
[1748247649549,3.88126183,2576.5,2576.1,0.05]
[1748247649712,4.13,2576.4,2576.2,0.777]
[1748247651243,4.13,2576.5,2576.2,0.777]
[1748247652242,3.88143198,2576.4,2576.2,0.777]
[1748247652627,3.88155983,2576.3,2576.1,0.05]
[1748247653007,3.8816862,2576.2,2576.1,0.05]
[1748247659875,8.0086862,2576.2,2576.1,0.05]
[1748247660578,11.8866862,2576.2,2576.1,0.05]
[1748247660886,3.8816862,2576.2,2576.1,0.05]
[1748247661090,11.8866862,2576.2,2576.1,0.05]
[1748247662297,3.8816862,2576.2,2576.1,0.05]
[1748247662485,3.88159758,2576.3,2576.1,0.05]
[1748247662683,8.0086862,2576.2,2576.1,0.05]
[1748247662888,4.53016248,2576.6,2576.1,0.05]
[1748247663184,4.127,2576.8,2576.2,1.25580139]
[1748247663383,4.127,2576.8,2576.3,8.0]
[1748247663384,8.00790826,2576.8,2576.3,8.0]
[1748247663602,8.00790826,2576.8,2576.2,1.23812895]
[1748247663955,8.00790826,2576.8,2576.3,8.0]
[1748247664296,3.88100132,2576.7,2576.2,9.23812895]
[1748247664500,3.8810157,2576.7,2576.3,9.3639232]
[1748247664794,3.8810157,2576.7,2576.3,1.3639232]
[1748247664993,3.88109949,2576.6,2576.3,1.3639232]
[1748247665152,8.00790826,2576.8,2576.2,8.7543]
[1748247665153,3.88132776,2576.5,2576.2,8.7543]
[1748247666590,3.88099535,2576.7,2576.2,8.7543]
[1748247668225,8.00780357,2576.8,2576.2,12.63593823]
[1748247668226,8.00782286,2576.8,2576.2,12.63593823]
[1748247668423,3.88082286,2576.8,2576.2,8.7543]
[1748247668636,8.00782286,2576.8,2576.3,1.31516003]
[1748247668857,8.373,2577.0,2576.4,1.3529]
[1748247669061,8.373,2577.0,2576.5,0.8029]
[1748247669262,8.373,2577.0,2576.6,3.88107985]
[1748247669410,3.88005857,2577.3,2576.8,8.0]
[1748247669754,3.88021172,2577.2,2576.9,1.26863068]
[1748247670344,3.88033625,2577.1,2576.9,1.26863068]
[1748247670550,3.88033625,2577.1,2576.7,8.8055]
[1748247670703,3.8802436,2577.2,2576.7,8.8055]
[1748247670909,8.00702991,2577.3,2576.7,8.8055]
[1748247672226,3.88039153,2577.1,2576.7,0.8055]
[1748247674850,8.00703721,2577.3,2576.7,4.68635473]
[1748247675154,3.88031955,2577.2,2576.8,1.26863547]
[1748247675750,3.88034295,2577.1,2576.8,1.26863547]
[1748247675920,4.127,2577.3,2576.8,1.26863547]
[1748247676125,3.88033721,2577.1,2576.8,1.26863547]
[1748247676758,4.127,2577.3,2576.8,1.26863547]
[1748247676962,4.127,2577.3,2577.0,0.8048]
[1748247677326,8.00703029,2577.3,2577.0,0.8048]
[1748247677958,4.127,2577.3,2577.0,0.8048]
[1748247680174,3.88027315,2577.2,2577.0,0.8048]
[1748247680871,8.00708812,2577.3,2577.0,0.8048]
[1748247681370,8.00708812,2577.3,2577.0,10.09354412]
[1748247681874,8.00708812,2577.3,2577.0,2.09354412]
[1748247685460,4.127,2577.3,2577.0,2.09354412]
[1748247687257,3.87965295,2577.6,2577.2,8.0]
[1748247687456,4.125,2577.5,2577.2,8.0]
[1748247687663,4.125,2577.5,2577.3,1.18802407]
[1748247687919,4.125,2577.5,2577.1,8.0]
[1748247688763,4.125,2577.5,2577.0,10.09354412]
[1748247689278,8.00486081,2577.5,2577.0,10.09354412]
[1748247690271,3.8799047,2577.4,2577.0,10.09354412]
[1748247690903,3.88012917,2577.3,2577.0,10.09354412]
[1748247691298,3.87995196,2577.4,2577.1,1.12390439]
[1748247693353,8.00479684,2577.5,2577.1,1.12390439]
[1748247693952,3.87989756,2577.4,2577.1,1.12390439]
[1748247696042,3.88004299,2577.3,2577.1,1.12390439]
[1748247697447,3.88073942,2576.9,2576.6,0.61647817]
[1748247697645,3.88073942,2576.9,2576.6,1.42937817]
[1748247698013,3.88073942,2576.9,2576.6,9.42937817]
[1748247698944,3.88073942,2576.9,2576.6,8.8129]
[1748247699247,3.876,2577.0,2576.4,0.7996]
[1748247699449,3.88116303,2576.6,2576.2,1.41607817]
[1748247699832,3.88116303,2576.6,2576.2,9.41607817]
[1748247700236,3.8812727,2576.5,2576.2,8.7996]
[1748247700435,3.8812727,2576.5,2576.2,2.46035601]
[1748247700755,3.88117783,2576.6,2576.2,0.7996]
[1748247701213,3.88129715,2576.5,2576.2,0.7996]
[1748247702440,3.88115319,2576.6,2576.2,0.7996]
[1748247703451,0.649,2576.9,2576.2,0.7996]
[1748247703629,8.00396389,2576.7,2576.2,0.7996]
[1748247703885,8.00396389,2576.7,2576.3,1.27313266]
[1748247704191,3.88110158,2576.6,2576.3,1.27313266]
[1748247704847,8.00399452,2576.7,2576.3,1.27313266]
[1748247705190,3.88108993,2576.6,2576.3,1.27313266]
[1748247706989,8.00394598,2576.7,2576.3,1.27313266]
[1748247707195,3.8813499,2576.5,2576.2,0.7996]
[1748247708822,3.88153553,2576.3,2576.1,0.05]
[1748247709811,3.88148435,2576.4,2576.1,0.05]
[1748247712726,3.877,2576.6,2576.1,12.43321849]
[1748247712727,4.123,2576.6,2576.1,12.43321849]
[1748247712885,3.88084515,2576.8,2576.2,14.84258282]
[1748247713087,4.123,2576.9,2576.4,0.801]
[1748247713287,8.00363743,2576.9,2576.4,0.801]
[1748247713592,8.00363743,2576.9,2576.4,4.68234867]
[1748247714099,8.00363743,2576.9,2576.4,0.801]
[1748247714421,8.00365212,2576.9,2576.5,0.57339722]
[1748247717334,4.123,2576.9,2576.7,0.7966]
[1748247717633,4.123,2576.9,2576.7,8.7966]
[1748247718228,4.123,2576.9,2576.7,0.7966]
[1748247719332,4.123,2576.9,2576.5,12.45458403]
[1748247719333,4.123,2576.9,2576.5,1.36489722]
[1748247719506,3.88089297,2576.8,2576.5,1.36489722]
[1748247720823,8.00367717,2576.9,2576.5,1.36489722]
[1748247721139,3.88088537,2576.8,2576.5,1.36489722]
[1748247721739,8.00369555,2576.9,2576.5,1.36489722]
[1748247722034,4.123,2576.9,2576.5,1.36489722]
[1748247722396,8.00367527,2576.9,2576.5,1.36489722]
[1748247723269,8.00367527,2576.9,2576.6,1.32462729]
[1748247723971,4.123,2576.9,2576.7,8.0]
[1748247724269,3.88036101,2577.1,2576.6,1.32462729]
[1748247724270,8.00050406,2577.0,2576.6,1.32462729]
[1748247724668,3.88050406,2577.0,2576.6,1.32462729]
[1748247724969,3.8806362,2576.9,2576.6,1.32462729]
[1748247725129,3.8806362,2576.9,2576.5,1.36489722]
[1748247726172,3.88078604,2576.8,2576.5,1.36489722]
[1748247727446,3.88069037,2576.9,2576.5,1.36489722]
[1748247728672,3.88080759,2576.8,2576.5,1.36489722]
[1748247729270,3.88080759,2576.8,2576.5,0.57339722]
[1748247729646,3.88094687,2576.7,2576.3,8.7934]
[1748247730950,3.88084346,2576.8,2576.3,8.7934]
[1748247731271,3.88095711,2576.7,2576.3,8.7934]
[1748247731448,3.88085404,2576.8,2576.3,12.67491796]
[1748247732674,3.88084097,2576.8,2576.3,12.67493339]
[1748247732875,3.88084097,2576.8,2576.4,1.43878817]
[1748247734278,3.88097373,2576.7,2576.4,1.43878817]
[1748247734463,3.8809063,2576.8,2576.4,1.43878817]
[1748247734773,3.88091041,2576.8,2576.3,8.7934]
[1748247735877,3.88093501,2576.7,2576.3,8.7934]
[1748247737990,4.52983106,2576.8,2576.3,8.7934]
[1748247738583,4.5298768,2576.8,2576.3,8.7934]
[1748247738783,3.88094852,2576.7,2576.3,8.7934]
[1748247739078,4.52983212,2576.8,2576.3,8.7934]
[1748247739255,3.88094007,2576.7,2576.3,8.7934]
[1748247739582,3.88094007,2576.7,2576.3,11.07472612]
[1748247740785,3.8809714,2576.7,2576.3,11.07472612]
[1748247741143,4.52985855,2576.8,2576.3,11.07472612]
[1748247741375,3.88093749,2576.7,2576.3,11.07472612]
[1748247741869,4.52982441,2576.8,2576.3,11.07472612]
[1748247742102,3.88102714,2576.7,2576.3,11.07472612]
[1748247742704,3.88117661,2576.6,2576.3,11.07472612]
[1748247742883,3.8813085,2576.5,2576.2,0.61647817]
[1748247743316,4.526,2576.8,2576.2,0.61647817]
[1748247743607,3.88101048,2576.7,2576.2,0.61647817]
[1748247743909,3.88110675,2576.6,2576.2,0.61647817]
[1748247744122,0.649,2576.4,2576.1,0.05]
[1748247744420,8.00159839,2576.3,2576.1,0.05]
[1748247744716,0.649,2576.7,2576.2,8.7568]
[1748247744873,3.88086752,2576.8,2576.2,5.51910532]
[1748247745070,3.88110213,2576.6,2576.3,8.0]
[1748247745302,3.88110213,2576.6,2576.2,1.63748]
[1748247746916,7.997,2576.7,2576.2,1.63748]
[1748247747218,3.88116935,2576.6,2576.2,1.63748]
[1748247747912,7.997,2576.7,2576.2,1.63748]
[1748247747913,3.8812467,2576.5,2576.2,1.63748]
[1748247748278,3.88115695,2576.6,2576.2,1.63748]
[1748247749619,3.88124952,2576.5,2576.2,1.63748]
[1748247749914,3.88146996,2576.4,2576.2,0.7568]
[1748247753520,3.88124576,2576.5,2576.2,0.7568]
[1748247753930,12.52697097,2576.7,2576.2,0.7568]
[1748247754499,3.88131402,2576.5,2576.2,0.7568]
[1748247755440,3.88131402,2576.5,2576.1,0.05]
[1748247755441,0.649,2577.1,2576.1,0.08881772]
[1748247755619,4.117,2576.8,2576.7,8.0]
[1748247755823,4.117,2576.8,2576.6,8.7621]
[1748247756024,4.117,2576.8,2576.6,0.7621]
[1748247759148,7.99783103,2576.8,2576.6,0.7621]
[1748247759354,3.88093297,2576.7,2576.2,0.7975]
[1748247759503,3.88134993,2576.5,2576.2,0.7975]
[1748247760340,3.88117989,2576.6,2576.2,0.7975]
[1748247760702,3.88124527,2576.5,2576.2,0.7975]
[1748247761010,3.88114341,2576.6,2576.2,0.7975]
[1748247763141,3.88114341,2576.6,2576.2,3.1245]
[1748247763344,3.88114341,2576.6,2576.2,0.7975]
[1748247764840,0.649,2576.5,2576.1,0.05]
[1748247765045,3.88115345,2576.6,2576.1,10.06663781]
[1748247765357,7.75798965,2576.7,2576.1,5.94847178]
[1748247765529,7.75798965,2576.7,2576.3,8.0]
[1748247766041,3.88109817,2576.6,2576.1,13.94842347]
[1748247766244,3.88109817,2576.6,2576.1,10.06663781]
[1748247766547,7.99697822,2576.7,2576.1,10.06663781]
[1748247766844,3.88108359,2576.6,2576.1,10.06663781]
[1748247767446,7.99697822,2576.7,2576.1,0.8118]
[1748247767447,3.88124049,2576.5,2576.1,0.8118]
[1748247768115,3.88152031,2576.4,2576.1,0.8118]
[1748247768337,3.88146964,2576.4,2576.1,0.05]
[1748247768534,3.88129783,2576.5,2576.1,0.05]
[1748247769250,3.88148558,2576.4,2576.1,0.05]
[1748247770132,3.88137884,2576.5,2576.1,0.05]
[1748247770338,3.88123423,2576.5,2576.1,0.05]
[1748247770950,3.8816862,2576.2,2576.1,0.05]
[1748247771837,7.9986862,2576.2,2576.1,0.05]
[1748247775655,11.8756862,2576.2,2576.1,0.05]
[1748247778358,3.8816862,2576.2,2576.1,0.05]
[1748247778562,7.9986862,2576.2,2576.1,0.05]
[1748247779483,3.8816862,2576.2,2576.1,0.05]
[1748247779650,11.8756862,2576.2,2576.1,0.05]
[1748247779982,3.8816862,2576.2,2576.1,0.05]
[1748247780172,7.9986862,2576.2,2576.1,0.05]
[1748247782381,4.113,2576.3,2576.1,0.8019]
[1748247782892,7.99446859,2576.4,2576.1,0.8019]
[1748247783291,2.59719065,2577.1,2576.3,0.7619]
[1748247783603,10.78437914,2577.2,2576.8,0.7619]
[1748247783914,10.78437914,2577.2,2576.8,5.14417675]
[1748247784208,10.78437914,2577.2,2576.8,0.7619]
[1748247784571,10.32319065,2577.2,2576.8,0.7619]
[1748247784898,10.32319065,2577.2,2576.8,2.41427072]
[1748247785383,10.32319065,2577.2,2576.8,6.29493954]
[1748247785887,10.32319065,2577.2,2577.0,8.0]
[1748247786088,1.94819065,2577.2,2577.0,3.88045537]
[1748247786510,1.94819065,2577.2,2576.8,10.41427072]
[1748247786700,3.88043397,2577.1,2576.8,0.7619]
[1748247786852,1.94819065,2577.2,2576.8,0.7619]
[1748247787051,5.82842805,2577.2,2576.8,8.7619]
[1748247787594,5.82842805,2577.2,2576.8,0.7619]
[1748247787885,5.82842805,2577.2,2576.8,8.7619]
[1748247788047,1.94819065,2577.2,2576.8,8.7619]
[1748247788249,1.94819065,2577.2,2576.8,0.7619]
[1748247788691,3.88007047,2577.3,2576.8,0.7619]
[1748247788885,3.88019673,2577.2,2576.8,0.7619]
[1748247789095,3.88008637,2577.3,2576.8,0.7619]
[1748247790094,4.113,2577.4,2576.8,0.7619]
[1748247790267,0.649,2577.1,2576.4,0.787]
[1748247790452,3.88096068,2576.7,2576.4,0.787]
[1748247790652,0.649,2576.7,2576.2,0.61647817]
[1748247790893,8.64204539,2576.7,2576.2,0.61647817]
[1748247791187,3.88121901,2576.6,2576.2,0.61647817]
[1748247791560,3.88108359,2576.6,2576.2,0.61647817]
[1748247791894,3.88108359,2576.6,2576.1,8.8282]
[1748247792197,3.88128102,2576.5,2576.1,0.8282]
[1748247792988,8.64204539,2576.7,2576.1,0.8282]
[1748247792989,3.88117374,2576.6,2576.1,0.8282]
[1748247793695,3.88113966,2576.6,2576.1,0.8282]
[1748247794505,3.88126162,2576.5,2576.1,0.8282]
[1748247794803,3.8816862,2576.2,2576.1,0.05]
[1748247795663,4.5306862,2576.2,2576.1,0.05]
[1748247800291,12.5206862,2576.2,2576.1,0.05]
[1748247800702,4.5306862,2576.2,2576.1,0.05]
[1748247800880,12.5216862,2576.2,2576.1,0.05]
[1748247803006,4.5306862,2576.2,2576.1,0.05]
[1748247803303,11.8726862,2576.2,2576.1,0.05]
[1748247806008,12.5216862,2576.2,2576.1,0.05]
[1748247816715,8.6416862,2576.2,2576.1,0.05]
[1748247816917,12.5206862,2576.2,2576.1,0.05]
[1748247817920,3.88259046,2575.6,2575.5,0.8254]
[1748247818442,7.99359046,2575.6,2575.5,0.8254]
[1748247818844,3.88259046,2575.6,2575.5,0.8254]
[1748247819045,7.99459046,2575.6,2575.5,0.8254]
[1748247821562,0.649,2576.4,2575.5,8.8254]
[1748247821737,3.88218051,2575.9,2575.6,0.8066]
[1748247821920,4.112,2575.8,2575.6,0.8066]
[1748247822121,3.88243972,2575.7,2575.6,0.8066]
[1748247824880,3.88185902,2576.1,2575.6,0.8066]
[1748247825063,4.112,2575.7,2575.6,0.8066]
[1748247828082,7.99443972,2575.7,2575.6,0.8066]
[1748247828584,4.112,2575.7,2575.6,0.8066]
[1748247829173,3.88289197,2575.4,2575.3,0.7533]